fUSD/lending_fUSD_20260404
["ID","MTS","AMOUNT","RATE_DAILY","PERIOD"]
[419716306,1775332295349,-500.0,0.00035835,9]
[419716307,1775332295360,-500.0,0.00035835,9]
[419716308,1775332295370,-500.0,0.00035835,9]
[419716309,1775332295379,-352.1409317,0.00035835,9]
[419716310,1775332295390,-500.0,0.00035835,9]
[419716311,1775332295399,-1189.32,0.00035835,9]
[419716312,1775332295409,-500.0,0.00035835,9]
[419716313,1775332295419,-500.0,0.00035835,9]
[419716314,1775332295429,-500.0,0.00035835,9]
[419716315,1775332295439,-500.0,0.00035835,9]
[419716316,1775332295448,-500.0,0.00035835,9]
[419716317,1775332295458,-500.0,0.00035835,9]
[419716318,1775332295468,-500.0,0.00035835,9]
[419716319,1775332295479,-500.0,0.00035835,9]
[419716320,1775332295488,-503.02607367,0.00035835,9]
[419716321,1775332295499,-500.0,0.00035835,9]
[419716322,1775332295508,-500.0,0.00035835,9]
[419716323,1775332295519,-902.85,0.00035835,9]
[419716324,1775332295529,-805.21,0.00035835,9]
[419716325,1775332295539,-500.0,0.00035835,9]
[419716326,1775332295549,-500.0,0.00035835,9]
[419716327,1775332295558,-1403.75,0.00035835,9]
[419716328,1775332295568,-500.0,0.00035835,9]
[419716329,1775332295577,-500.0,0.00035835,9]
[419716330,1775332295588,-500.0,0.00035835,9]
[419716331,1775332295598,-500.0,0.00035835,9]
[419716332,1775332295608,-632.53,0.00035835,9]
[419716333,1775332295618,-292.54028906,0.00035835,9]
[419716334,1775332295627,-500.0,0.00035835,9]
[419716335,1775332295637,-500.0,0.00035835,9]
[419716336,1775332295647,-1654.65,0.00035835,9]
[419716337,1775332295657,-501.34741294,0.00035835,9]
[419716338,1775332295666,-1839.4,0.00035835,9]
[419716339,1775332295676,-500.0,0.00035835,9]
[419716340,1775332295687,-500.0,0.00035835,9]
[419716341,1775332295697,-503.99596786,0.00035835,9]
[419716342,1775332295706,-500.0,0.00035835,9]
[419716343,1775332295716,-1294.36,0.00035835,9]
[419716344,1775332295730,-1978.02,0.00035835,9]
[419716345,1775332295740,-500.0,0.00035835,9]
[419716346,1775332295749,-500.0,0.00035835,9]
[419716347,1775332295759,-500.0,0.00035835,9]
[419716348,1775332295768,-500.0,0.00035835,9]
[419716349,1775332295777,-633.61408296,0.00035835,9]
[419716350,1775332295787,-500.0,0.00035835,9]
[419716351,1775332295796,-500.0,0.00035835,9]
[419716352,1775332295805,-500.0,0.00035835,9]
[419716353,1775332295815,-1570.35,0.00035835,9]
[419716354,1775332295824,-500.0,0.00035835,9]
[419716355,1775332295834,-500.0,0.00035835,9]
[419716356,1775332295843,-500.0,0.00035835,9]
[419716357,1775332295853,-500.0,0.00035835,9]
[419716358,1775332295862,-500.0,0.00035835,9]
[419716359,1775332295871,-1842.63,0.00035835,9]
[419716360,1775332295880,-500.0,0.00035835,9]
[419716361,1775332295890,-575.08473009,0.00035835,9]
[419716362,1775332295899,-980.27,0.00035835,9]
[419716363,1775332295909,-500.0,0.00035835,9]
[419716364,1775332295918,-507.44365405,0.00035835,9]
[419716365,1775332295928,-500.0,0.00035835,9]
[419716366,1775332295937,-500.0,0.00035835,9]
[419716367,1775332295947,-500.0,0.00035835,9]
[419716368,1775332295956,-500.0,0.00035835,9]
[419716369,1775332295965,-500.0,0.00035835,9]
[419716370,1775332295975,-500.0,0.00035835,9]
[419716371,1775332295986,-515.86625489,0.00035835,9]
[419716372,1775332295995,-539.16332222,0.00035835,9]
[419716373,1775332296005,-500.0,0.00035835,9]
[419716374,1775332296015,-1063.97,0.00035835,9]
[419716375,1775332296024,-257.96190136,0.00035835,9]
[419716376,1775332296034,-500.0,0.00035835,9]
[419716377,1775332296043,-500.0,0.00035835,9]
[419716378,1775332296052,-502.12423691,0.00035835,9]
[419716379,1775332296061,-342.0746382,0.00035835,9]
[419716380,1775332296071,-438.95669057,0.00035835,9]
[419716381,1775332296081,-505.58262357,0.00035835,9]
[419716382,1775332296090,-516.68859415,0.00035835,9]
[419716383,1775332296100,-502.05309364,0.00035835,9]
[419716384,1775332296109,-577.4,0.00035835,9]
[419716385,1775332296119,-327.96743484,0.00035835,9]
[419716386,1775332296128,-500.0,0.00035835,9]
[419716387,1775332296138,-2266.54,0.00035835,9]
[419716388,1775332296147,-500.0,0.00035835,9]
[419716389,1775332296157,-500.0,0.00035835,9]
[419716390,1775332296166,-846.17,0.00035835,9]
[419716391,1775332296176,-500.0,0.00035835,9]
[419716392,1775332296185,-500.0,0.00035835,9]
[419716393,1775332296195,-1397.44,0.00035835,9]
[419716394,1775332296204,-849.25,0.00035835,9]
[419716395,1775332296213,-500.0,0.00035835,9]
[419716396,1775332296223,-500.0,0.00035835,9]
[419716397,1775332296232,-537.29111973,0.00035835,9]
[419716398,1775332296241,-500.0,0.00035835,9]
[419716399,1775332296251,-500.0,0.00035835,9]
[419716400,1775332296260,-2000.36,0.00035835,9]
[419716401,1775332296270,-500.0,0.00035835,9]
[419716402,1775332296279,-2051.15,0.00035835,9]
[419716403,1775332296289,-368.22959967,0.00035835,9]
[419716404,1775332296298,-1692.83,0.00035835,9]
[419716405,1775332296308,-500.0,0.00035835,9]
[419716406,1775332296318,-500.0,0.00035835,9]
[419716407,1775332296327,-500.0,0.00035835,9]
[419716408,1775332296337,-1768.11,0.00035835,9]
[419716409,1775332296347,-521.82666991,0.00035835,9]
[419716410,1775332296356,-517.21538841,0.00035835,9]
[419716411,1775332296365,-500.0,0.00035835,9]
[419716412,1775332296375,-516.75773867,0.00035835,9]
[419716413,1775332296383,-512.05888319,0.00035835,9]
[419716414,1775332296392,-523.66841101,0.00035835,9]
[419716415,1775332296402,-500.0,0.00035835,9]
[419716416,1775332296413,-559.76279648,0.00035835,9]
[419716417,1775332296423,-500.0,0.00035835,9]
[419716418,1775332296432,-500.0,0.00035835,9]
[419716419,1775332296441,-716.38,0.00035835,9]
[419716420,1775332296450,-500.0,0.00035835,9]
[419716421,1775332296459,-848.6,0.00035835,9]
[419716422,1775332296469,-500.0,0.00035835,9]
[419716423,1775332296479,-500.0,0.00035835,9]
[419716424,1775332296488,-372.00204012,0.00035835,9]
[419716425,1775332296497,-506.177317,0.00035835,9]
[419716426,1775332296507,-373.32990608,0.00035835,9]
[419716427,1775332296516,-769.75,0.00035835,9]
[419716428,1775332296527,-1615.17,0.00035835,9]
[419716429,1775332296536,-500.0,0.00035835,9]
[419716430,1775332296547,-1981.11,0.00035835,9]
[419716431,1775332296556,-510.18681606,0.00035835,9]
[419716432,1775332296566,-1834.55,0.00035835,9]
[419716433,1775332296575,-1767.02,0.00035835,9]
[419716434,1775332296585,-500.0,0.00035835,9]
[419716435,1775332296595,-529.32828916,0.00035835,9]
[419716436,1775332296605,-506.64762439,0.00035835,9]
[419716437,1775332296615,-500.0,0.00035835,9]
[419716438,1775332296626,-521.29773055,0.00035835,9]
[419716439,1775332296635,-1246.19,0.00035835,9]
[419716440,1775332296645,-520.03829367,0.00035835,9]
[419716441,1775332296654,-509.60097705,0.00035835,9]
[419716442,1775332296665,-507.08299154,0.00035835,9]
[419716443,1775332296675,-500.0,0.00035835,9]
[419716444,1775332296685,-500.0,0.00035835,9]
[419716445,1775332296695,-500.0,0.00035835,9]
[419716446,1775332296705,-516.16943705,0.00035835,9]
[419716447,1775332296714,-500.0,0.00035835,9]
[419716448,1775332296724,-500.0,0.00035835,9]
[419716449,1775332296733,-500.0,0.00035835,9]
[419716450,1775332296743,-513.27103319,0.00035835,9]
[419716451,1775332296752,-500.0,0.00035835,9]
[419716452,1775332296762,-2537.68,0.00035835,9]
[419716453,1775332296772,-500.0,0.00035835,9]
[419716454,1775332296782,-500.0,0.00035835,9]
[419716455,1775332296792,-501.46557231,0.00035835,9]
[419716456,1775332296801,-626.42,0.00035835,9]
[419716457,1775332296810,-519.00754213,0.00035835,9]
[419716458,1775332296820,-500.0,0.00035835,9]
[419716459,1775332296829,-500.0,0.00035835,9]
[419716460,1775332296840,-516.01481572,0.00035835,9]
[419716461,1775332296850,-306.30254284,0.00035835,9]
[419716462,1775332296859,-500.0,0.00035835,9]
[419716463,1775332296869,-500.0,0.00035835,9]
[419716464,1775332296878,-186.76959858,0.00035835,9]
[419716465,1775332296887,-500.0,0.00035835,9]
[419716466,1775332296896,-524.52729203,0.00035835,9]
[419716467,1775332296907,-500.0,0.00035835,9]
[419716468,1775332296916,-533.3698035,0.00035835,9]
[419716469,1775332296926,-500.0,0.00035835,9]
[419716470,1775332296935,-1406.25,0.00035835,9]
[419716471,1775332296945,-510.98605795,0.00035835,9]
[419716472,1775332296955,-500.0,0.00035835,9]
[419716473,1775332296965,-500.0,0.00035835,9]
[419716474,1775332296974,-562.39,0.00035835,9]
[419716475,1775332296984,-500.0,0.00035835,9]
[419716476,1775332296994,-519.32983113,0.00035835,9]
[419716477,1775332297005,-500.0,0.00035835,9]
[419716478,1775332297014,-500.0,0.00035835,9]
[419716479,1775332297024,-519.91120301,0.00035835,9]
[419716480,1775332297034,-500.0,0.00035835,9]
[419716481,1775332297043,-500.0,0.00035835,9]
[419716482,1775332297052,-500.0,0.00035835,9]
[419716483,1775332297062,-500.0,0.00035835,9]
[419716484,1775332297071,-546.64592452,0.00035835,9]
[419716485,1775332297080,-500.0,0.00035835,9]
[419716486,1775332297090,-500.0,0.00035835,9]
[419716487,1775332297099,-500.0,0.00035835,9]
[419716488,1775332297108,-647.59,0.00035835,9]
[419716489,1775332297119,-2037.62,0.00035835,9]
[419716490,1775332297128,-500.0,0.00035835,9]
[419716491,1775332297138,-500.0,0.00035835,9]
[419716492,1775332297147,-500.0,0.00035835,9]
[419716493,1775332297157,-500.0,0.00035835,9]
[419716494,1775332297166,-500.0,0.00035835,9]
[419716495,1775332297176,-545.87553289,0.00035835,9]
[419716496,1775332297186,-500.0,0.00035835,9]
[419716497,1775332297195,-202.88061637,0.00035835,9]
[419716498,1775332297205,-500.0,0.00035835,9]
[419716499,1775332297214,-500.0,0.00035835,9]
[419716500,1775332297223,-500.0,0.00035835,9]
[419716501,1775332297233,-500.0,0.00035835,9]
[419716502,1775332297244,-500.0,0.00035835,9]
[419716503,1775332297253,-500.0,0.00035835,9]
[419716504,1775332297262,-527.99793141,0.00035835,9]
[419716505,1775332297272,-500.0,0.00035835,9]
[419716506,1775332297281,-500.0,0.00035835,9]
[419716507,1775332297291,-500.0,0.00035835,9]
[419716508,1775332297300,-1047.02,0.00035835,9]
[419716509,1775332297309,-500.0,0.00035835,9]
[419716510,1775332297319,-500.0,0.00035835,9]
[419716511,1775332297328,-551.6768178,0.00035835,9]
[419716512,1775332297338,-500.0,0.00035835,9]
[419716513,1775332297347,-500.0,0.00035835,9]
[419716514,1775332297358,-500.0,0.00035835,9]
[419716515,1775332297367,-500.0,0.00035835,9]
[419716516,1775332297377,-557.53484689,0.00035835,9]
[419716517,1775332297387,-521.26306545,0.00035835,9]
[419716518,1775332297397,-520.54302046,0.00035835,9]
[419716519,1775332297406,-1248.55,0.00035835,9]
[419716520,1775332297415,-466.6642956,0.00035835,9]
[419716521,1775332297425,-500.0,0.00035835,9]
[419716522,1775332297435,-1014.84,0.00035835,9]
[419716523,1775332297445,-500.0,0.00035835,9]
[419716524,1775332297454,-500.0,0.00035835,9]
[419716525,1775332297464,-500.0,0.00035835,9]
[419716526,1775332297473,-500.0,0.00035835,9]
[419716527,1775332297482,-557.12625236,0.00035835,9]
[419716528,1775332297492,-500.0,0.00035835,9]
[419716529,1775332297501,-500.0,0.00035835,9]
[419716530,1775332297511,-513.03121736,0.00035835,9]
[419716531,1775332297520,-500.0,0.00035835,9]
[419716532,1775332297529,-500.0,0.00035835,9]
[419716533,1775332297539,-502.53440873,0.00035835,9]
[419716534,1775332297549,-503.88907003,0.00035835,9]
[419716535,1775332297559,-500.0,0.00035835,9]
[419716536,1775332297568,-500.0,0.00035835,9]
[419716537,1775332297578,-500.0,0.00035835,7]
[419716538,1775332297589,-500.0,0.00035835,9]
[419716539,1775332297599,-500.0,0.00035835,9]
[419716540,1775332297611,-500.0,0.00035835,9]
[419716541,1775332297620,-661.92,0.00035835,9]
[419716542,1775332297630,-500.0,0.00035835,9]
[419716543,1775332297640,-500.0,0.00035835,9]
[419716544,1775332297650,-500.0,0.00035835,7]
[419716545,1775332297659,-505.13344596,0.00035835,9]
[419716546,1775332297669,-500.0,0.00035835,9]
[419716547,1775332297678,-500.0,0.00035835,9]
[419716548,1775332297687,-500.0,0.00035835,9]
[419716549,1775332297697,-500.0,0.00035835,9]
[419716550,1775332297707,-500.0,0.00035835,9]
[419716551,1775332297718,-687.29,0.00035835,9]
[419716552,1775332297727,-500.0,0.00035835,9]
[419716553,1775332297736,-875.01,0.00035835,9]
[419716554,1775332297746,-500.0,0.00035835,9]
[419716555,1775332297755,-1276.84,0.00035835,9]
[419716556,1775332297764,-500.0,0.00035835,9]
[419716557,1775332297773,-501.1917267,0.00035835,9]
[419716558,1775332297782,-320.19201019,0.00035835,9]
[419716559,1775332297791,-500.0,0.00035835,9]
[419716560,1775332297800,-974.09,0.00035835,9]
[419716561,1775332297809,-500.0,0.00035835,9]
[419716562,1775332297818,-500.0,0.00035835,9]
[419716563,1775332297827,-500.0,0.00035835,9]
[419716564,1775332297836,-500.0,0.00035835,9]
[419716565,1775332297845,-503.87054687,0.00035835,9]
[419716566,1775332297854,-562.0091666,0.00035835,9]
[419716567,1775332297863,-500.0,0.00035835,9]
[419716568,1775332297872,-679.81,0.00035835,9]
[419716569,1775332297881,-500.0,0.00035835,9]
[419716570,1775332297890,-500.0,0.00035835,9]
[419716571,1775332297900,-500.0,0.00035835,9]
[419716572,1775332297909,-500.0,0.00035835,9]
[419716573,1775332297919,-203.83264726,0.00035835,9]
[419716574,1775332297930,-1076.63,0.00035835,9]
[419716575,1775332297941,-1263.13,0.00035835,9]
[419716576,1775332297950,-500.0,0.00035835,9]
[419716577,1775332297960,-626.35,0.00035835,9]
[419716578,1775332297969,-500.0,0.00035835,9]
[419716579,1775332297978,-502.16859325,0.00035835,9]
[419716580,1775332297987,-500.0,0.00035835,9]
[419716581,1775332297996,-3301.23,0.00035835,9]
[419716582,1775332298008,-500.0,0.00035835,9]
[419716583,1775332298017,-299.48019227,0.00035835,9]
[419716584,1775332298026,-500.0,0.00035835,9]
[419716585,1775332298036,-500.0,0.00035835,9]
[419716586,1775332298046,-500.0,0.00035835,9]
[419716587,1775332298055,-500.0,0.00035835,9]
[419716588,1775332298065,-700.75,0.00035835,9]
[419716589,1775332298075,-244.72488784,0.00035835,9]
[419716590,1775332298085,-500.0,0.00035835,9]
[419716591,1775332298095,-500.0,0.00035835,9]
[419716592,1775332298105,-500.0,0.00035835,9]
[419716593,1775332298116,-500.0,0.00035835,9]
[419716594,1775332298303,-500.0,0.00035835,9]
[419716595,1775332298334,-1391.97,0.00035835,9]
[419716596,1775332298344,-500.0,0.00035835,9]
[419716597,1775332298354,-500.0,0.00035835,9]
[419716598,1775332298363,-500.0,0.00035835,9]
[419716599,1775332298372,-448.26283989,0.00035835,9]
[419716600,1775332298381,-990.32,0.00035835,9]
[419716601,1775332298391,-502.92371463,0.00035835,9]
[419716602,1775332298400,-500.0,0.00035835,9]
[419716603,1775332298409,-1489.37,0.00035835,9]
[419716604,1775332298420,-500.0,0.00035835,9]
[419716605,1775332298430,-500.0,0.00035835,30]
[419716606,1775332298440,-1093.68,0.00035835,9]
[419716607,1775332298450,-500.0,0.00035835,9]
[419716608,1775332298459,-583.66132288,0.00035835,9]
[419716609,1775332298468,-500.0,0.00035835,9]
[419716610,1775332298478,-500.0,0.00035835,9]
[419716611,1775332298488,-500.0,0.00035835,9]
[419716612,1775332298499,-500.0,0.00035835,9]
[419716613,1775332298509,-500.0,0.00035835,9]
[419716614,1775332298519,-500.0,0.00035835,9]
[419716615,1775332298530,-1401.96,0.00035835,9]
[419716616,1775332298539,-500.0,0.00035835,9]
[419716617,1775332298548,-500.0,0.00035835,9]
[419716618,1775332298558,-500.0,0.00035835,9]
[419716619,1775332298568,-502.53894338,0.00035835,9]
[419716620,1775332298577,-500.0,0.00035835,9]
[419716621,1775332298587,-973.24,0.00035835,9]
[419716622,1775332298596,-518.23,0.00035835,9]
[419716623,1775332298605,-500.0,0.00035835,9]
[419716624,1775332298614,-500.0,0.00035835,9]
[419716625,1775332298624,-500.0,0.00035835,9]
[419716626,1775332298633,-500.0,0.00035835,9]
[419716627,1775332298642,-500.0,0.00035835,9]
[419716628,1775332298651,-500.0,0.00035835,9]
[419716629,1775332298661,-1590.93,0.00035835,9]
[419716630,1775332298671,-992.38,0.00035835,9]
[419716631,1775332298680,-500.0,0.00035835,9]
[419716632,1775332298689,-500.0,0.00035835,9]
[419716633,1775332298698,-501.78,0.00035835,9]
[419716634,1775332298707,-500.0,0.00035835,9]
[419716635,1775332298716,-500.0,0.00035835,9]
[419716636,1775332298725,-798.54,0.00035835,9]
[419716637,1775332298734,-500.0,0.00035835,9]
[419716638,1775332298743,-500.0,0.00035835,9]
[419716639,1775332298753,-500.0,0.00035835,9]
[419716640,1775332298762,-500.0,0.00035835,9]
[419716641,1775332298771,-1197.82,0.00035835,9]
[419716642,1775332298780,-500.0,0.00035835,9]
[419716643,1775332298789,-500.0,0.00035835,9]
[419716644,1775332298798,-500.0,0.00035835,9]
[419716645,1775332298807,-360.64373838,0.00035835,9]
[419716646,1775332298816,-500.0,0.00035835,9]
[419716647,1775332298826,-500.0,0.00035835,9]
[419716648,1775332298835,-500.0,0.00035835,9]
[419716649,1775332298844,-500.0,0.00035835,9]
[419716650,1775332298853,-500.0,0.00035835,9]
[419716651,1775332298863,-500.0,0.00035835,9]
[419716652,1775332298872,-500.0,0.00035835,9]
[419716653,1775332298881,-2136.99,0.00035835,9]
[419716654,1775332298890,-510.89,0.00035835,9]
[419716655,1775332298899,-500.0,0.00035835,9]
[419716656,1775332298908,-500.0,0.00035835,9]
[419716657,1775332298918,-500.0,0.00035835,9]
[419716658,1775332298927,-500.0,0.00035835,9]
[419716659,1775332298936,-500.0,0.00035835,9]
[419716660,1775332298945,-153.08221369,0.00035835,9]
[419716661,1775332298955,-500.0,0.00035835,9]
[419716662,1775332298964,-500.0,0.00035835,9]
[419716663,1775332298973,-941.88,0.00035835,9]
[419716664,1775332298982,-526.82,0.00035835,9]
[419716665,1775332298991,-598.8427352,0.00035835,9]
[419716666,1775332299001,-653.03,0.00035835,9]
[419716667,1775332299010,-500.0,0.00035835,9]
[419716668,1775332299021,-500.0,0.00035835,9]
[419716669,1775332299030,-500.0,0.00035835,9]
[419716670,1775332299041,-500.0,0.00035835,9]
[419716671,1775332299050,-500.0,0.00035835,9]
[419716672,1775332299059,-500.0,0.00035835,9]
[419716673,1775332299069,-500.0,0.00035835,9]
[419716674,1775332299078,-500.0,0.00035835,9]
[419716675,1775332299088,-500.0,0.00035835,9]
[419716676,1775332299097,-552.30283176,0.00035835,9]
[419716677,1775332299106,-500.0,0.00035835,9]
[419716678,1775332299115,-500.0,0.00035835,9]
[419716679,1775332299124,-500.0,0.00035835,9]
[419716680,1775332299134,-500.0,0.00035835,9]
[419716681,1775332299144,-500.0,0.00035835,9]
[419716682,1775332299154,-500.0,0.00035835,9]
[419716683,1775332299163,-500.0,0.00035835,9]
[419716684,1775332299173,-500.0,0.00035835,9]
[419716685,1775332299182,-500.0,0.00035835,9]
[419716686,1775332299191,-500.0,0.00035835,9]
[419716687,1775332299202,-500.0,0.00035835,9]
[419716688,1775332299211,-500.0,0.00035835,9]
[419716689,1775332299220,-500.0,0.00035835,9]
[419716690,1775332299229,-500.0,0.00035835,9]
[419716691,1775332299239,-500.0,0.00035835,9]
[419716692,1775332299248,-500.0,0.00035835,9]
[419716693,1775332299257,-500.0,0.00035835,9]
[419716694,1775332299267,-500.0,0.00035835,9]
[419716695,1775332299276,-500.0,0.00035835,9]
[419716696,1775332299287,-500.0,0.00035835,9]
[419716697,1775332299297,-500.0,0.00035835,9]
[419716698,1775332299307,-500.0,0.00035835,9]
[419716699,1775332299319,-500.0,0.00035835,9]
[419716700,1775332299328,-500.0,0.00035835,9]
[419716701,1775332299338,-500.0,0.00035835,9]
[419716702,1775332299347,-500.0,0.00035835,9]
[419716703,1775332299357,-500.0,0.00035835,9]
[419716704,1775332299367,-500.0,0.00035835,9]
[419716705,1775332299377,-500.0,0.00035835,9]
[419716706,1775332299387,-500.0,0.00035835,9]
[419716707,1775332299396,-1091.36,0.00035835,9]
[419716708,1775332299406,-500.0,0.00035835,9]
[419716709,1775332299415,-580.95,0.00035835,9]
[419716710,1775332299425,-500.0,0.00035835,9]
[419716711,1775332299436,-500.0,0.00035835,9]
[419716712,1775332299446,-500.0,0.00035835,9]
[419716713,1775332299455,-1172.92,0.00035835,9]
[419716714,1775332299466,-1480.28,0.00035835,9]
[419716715,1775332299475,-500.0,0.00035835,9]
[419716716,1775332299484,-500.0,0.00035835,9]
[419716717,1775332299494,-500.0,0.00035835,9]
[419716718,1775332299504,-507.48,0.00035835,9]
[419716719,1775332299513,-500.0,0.00035835,9]
[419716720,1775332299522,-500.0,0.00035835,9]
[419716721,1775332299531,-500.0,0.00035835,9]
[419716722,1775332299540,-500.0,0.00035835,9]
[419716723,1775332299550,-500.0,0.00035835,9]
[419716724,1775332299559,-500.0,0.00035835,9]
[419716725,1775332299568,-500.0,0.00035835,9]
[419716726,1775332299577,-500.0,0.00035835,9]
[419716727,1775332299587,-500.0,0.00035835,9]
[419716728,1775332299599,-500.0,0.00035835,9]
[419716729,1775332299608,-500.0,0.00035835,9]
[419716730,1775332299618,-229.64683827,0.00035835,9]
[419716731,1775332299628,-500.0,0.00035835,9]
[419716732,1775332299637,-355.47534252,0.00035835,9]
[419716733,1775332299647,-500.0,0.00035835,9]
[419716734,1775332299657,-509.11447798,0.00035835,9]
[419716735,1775332299666,-500.0,0.00035835,9]
[419716736,1775332299677,-500.0,0.00035835,9]
[419716737,1775332299686,-500.0,0.00035835,9]
[419716738,1775332299698,-500.0,0.00035835,9]
[419716739,1775332299708,-500.0,0.00035835,9]
[419716740,1775332299717,-1326.29,0.00035835,9]
[419716741,1775332299728,-500.0,0.00035835,9]
[419716742,1775332299737,-500.0,0.00035835,9]
[419716743,1775332299747,-773.63,0.00035835,9]
[419716744,1775332299758,-500.0,0.00035835,9]
[419716745,1775332299767,-2320.71,0.00035835,9]
[419716746,1775332299776,-500.0,0.00035835,9]
[419716747,1775332299787,-1041.38,0.00035835,9]
[419716748,1775332299798,-500.0,0.00035835,2]
[419716749,1775332299807,-500.0,0.00035835,9]
[419716750,1775332299817,-500.0,0.00035835,9]
[419716751,1775332299827,-500.0,0.00035835,9]
[419716752,1775332299837,-3259.05,0.00035835,9]
[419716753,1775332299847,-500.0,0.00035835,9]
[419716754,1775332299858,-500.0,0.00035835,9]
[419716755,1775332299867,-523.30482169,0.00035835,9]
[419716756,1775332299877,-500.0,0.00035835,9]
[419716757,1775332299886,-500.0,0.00035835,9]
[419716758,1775332299896,-500.0,0.00035835,9]
[419716759,1775332299907,-500.0,0.00035835,9]
[419716760,1775332299916,-500.0,0.00035835,9]
[419716761,1775332299928,-500.0,0.00035835,9]
[419716762,1775332299939,-500.0,0.00035835,9]
[419716763,1775332299949,-500.0,0.00035835,9]
[419716764,1775332299958,-156.71830856,0.00035835,9]
[419716765,1775332299968,-500.0,0.00035835,9]
[419716766,1775332299977,-500.0,0.00035835,9]
[419716767,1775332299987,-500.0,0.00035835,9]
[419716768,1775332299996,-500.0,0.00035835,9]
[419716769,1775332300007,-736.11,0.00035835,9]
[419716770,1775332300016,-500.0,0.00035835,9]
[419716771,1775332300025,-538.36389513,0.00035835,9]
[419716772,1775332300035,-1125.2,0.00035835,9]
[419716773,1775332300044,-500.0,0.00035835,9]
[419716774,1775332300053,-500.0,0.00035835,9]
[419716775,1775332300063,-500.0,0.00035835,9]
[419716776,1775332300072,-500.0,0.00035835,9]
[419716777,1775332300082,-500.0,0.00035835,9]
[419716778,1775332300091,-515.81605204,0.00035835,9]
[419716779,1775332300101,-500.0,0.00035835,9]
[419716780,1775332300110,-859.34,0.00035835,9]
[419716781,1775332300119,-997.12,0.00035835,9]
[419716782,1775332300128,-500.0,0.00035835,9]
[419716783,1775332300137,-500.0,0.00035835,9]
[419716784,1775332300147,-500.0,0.00035835,9]
[419716785,1775332300156,-500.0,0.00035835,9]
[419716786,1775332300166,-163.18370186,0.00035835,9]
[419716787,1775332300175,-500.0,0.00035835,9]
[419716788,1775332300185,-500.0,0.00035835,9]
[419716789,1775332300194,-16652.63,0.00035835,9]
[419716790,1775332300204,-500.0,0.00035835,9]
[419716791,1775332300213,-500.0,0.00035835,9]
[419716792,1775332300222,-500.0,0.00035835,9]
[419716793,1775332300231,-500.0,0.00035835,9]
[419716794,1775332300240,-500.0,0.00035835,9]
[419716795,1775332300249,-500.0,0.00035835,9]
[419716796,1775332300258,-618.59,0.00035835,9]
[419716797,1775332300268,-675.04,0.00035835,9]
[419716798,1775332300277,-756.47,0.00035835,9]
[419716799,1775332300287,-500.0,0.00035835,9]
[419716800,1775332300297,-1113.0,0.00035835,9]
[419716801,1775332300307,-577.41,0.00035835,9]
[419716802,1775332300317,-2112.44,0.00035835,9]
[419716803,1775332300327,-500.0,0.00035835,9]
[419716804,1775332300336,-693.75,0.00035835,9]
[419716805,1775332300344,-500.0,0.00035835,9]